{"text_format":"3","workbook":"xlsx","n_sheets":2,"sheets":["ตัวติดตามโครงการ","การตั้งค่า"],"not_rendered":{"defined_names":6},"read":"whole","date_system":"1900"}

{"sheet":"ตัวติดตามโครงการ","index":0,"n_rows":13,"n_cols":15,"rows_kept":13}
[null,"ตัวติดตามโครงการ"]
[null,null,"ตั้งค่าสถานะเมื่อมากกว่า/น้อยกว่าเป็นจำนวนเปอร์เซนต์นี้: ",{"v":0.25,"d":"25%"}]
[]
[null,"โครงการ","ประเภท","มอบหมายให้","เวลาเริ่มต้น\nที่ประมาณไว้","เวลาเสร็จสิ้น\nที่ประมาณไว้","เวลาทำงานที่ประมาณไว้ (ชั่วโมง)","ระยะเวลาโดยประมาณ (วัน)","เวลาจริง\nที่เริ่มต้น","เวลาจริง\nที่เสร็จสิ้น","ไอคอนธงสำหรับการทำงานจริงที่ที่มาก/น้อยเกินไป (ชั่วโมง)","ทำงานจริง (ชั่วโมง)","ไอคอนธงสำหรับระยะเวลาจริงที่ที่มาก/น้อยเกินไป (วัน)","ระยะเวลาจริง (วัน)","หมายเหตุ"]
[null,"โครงการ 1","ประเภทที่ 1","พนักงาน 1",{"$f":"TODAY()-65","v":"2016-10-17"},{"$f":"TODAY()-5","v":"2016-12-16"},210,{"$f":"IF(COUNTA(ตัวติดตามโครงการ!$E5,ตัวติดตามโครงการ!$F5)<>2,\"\",DAYS360(ตัวติดตามโครงการ!$E5,ตัวติดตามโครงการ!$F5,FALSE))","v":59},{"$f":"TODAY()-65","v":"2016-10-17"},{"$f":"TODAY()","v":"2016-12-21"},{"$f":"IFERROR(IF(ตัวติดตามโครงการ[ทำงานจริง (ชั่วโมง)]=0,\"\",IF(ABS((ตัวติดตามโครงการ[[#This Row],[ทำงานจริง (ชั่วโมง)]]-ตัวติดตามโครงการ[[#This Row],[เวลาทำงานที่ประมาณไว้ (ชั่วโมง)]])/ตัวติดตามโครงการ[[#This Row],[เวลาทำงานที่ประมาณไว้ (ชั่วโมง)]])>เปอร์เซ็นต์การตั้งค่าสถานะ,1,0)),\"\")","v":1},300,{"$f":"IFERROR(IF(ตัวติดตามโครงการ[ระยะเวลาจริง (วัน)]=0,\"\",IF(ABS((ตัวติดตามโครงการ[[#This Row],[ระยะเวลาจริง (วัน)]]-ตัวติดตามโครงการ[[#This Row],[ระยะเวลาโดยประมาณ (วัน)]])/ตัวติดตามโครงการ[[#This Row],[ระยะเวลาโดยประมาณ (วัน)]])>เปอร์เซ็นต์การตั้งค่าสถานะ,1,0)),\"\")","v":0},{"$f":"IF(COUNTA(ตัวติดตามโครงการ!$I5,ตัวติดตามโครงการ!$J5)<>2,\"\",DAYS360(ตัวติดตามโครงการ!$I5,ตัวติดตามโครงการ!$J5,FALSE))","v":64}]
[null,"โครงการ 2","ประเภทที่ 2","พนักงาน 4",{"$f":"TODAY()-41","v":"2016-11-10"},{"$f":"TODAY()-10","v":"2016-12-11"},400,{"$f":"IF(COUNTA(ตัวติดตามโครงการ!$E6,ตัวติดตามโครงการ!$F6)<>2,\"\",DAYS360(ตัวติดตามโครงการ!$E6,ตัวติดตามโครงการ!$F6,FALSE))","v":31},{"$f":"TODAY()-41","v":"2016-11-10"},{"$f":"TODAY()-7","v":"2016-12-14"},{"$f":"IFERROR(IF(ตัวติดตามโครงการ[ทำงานจริง (ชั่วโมง)]=0,\"\",IF(ABS((ตัวติดตามโครงการ[[#This Row],[ทำงานจริง (ชั่วโมง)]]-ตัวติดตามโครงการ[[#This Row],[เวลาทำงานที่ประมาณไว้ (ชั่วโมง)]])/ตัวติดตามโครงการ[[#This Row],[เวลาทำงานที่ประมาณไว้ (ชั่วโมง)]])>เปอร์เซ็นต์การตั้งค่าสถานะ,1,0)),\"\")","v":0},390,{"$f":"IFERROR(IF(ตัวติดตามโครงการ[ระยะเวลาจริง (วัน)]=0,\"\",IF(ABS((ตัวติดตามโครงการ[[#This Row],[ระยะเวลาจริง (วัน)]]-ตัวติดตามโครงการ[[#This Row],[ระยะเวลาโดยประมาณ (วัน)]])/ตัวติดตามโครงการ[[#This Row],[ระยะเวลาโดยประมาณ (วัน)]])>เปอร์เซ็นต์การตั้งค่าสถานะ,1,0)),\"\")","v":0},{"$f":"IF(COUNTA(ตัวติดตามโครงการ!$I6,ตัวติดตามโครงการ!$J6)<>2,\"\",DAYS360(ตัวติดตามโครงการ!$I6,ตัวติดตามโครงการ!$J6,FALSE))","v":34}]
[null,"โครงการ 3","ประเภทที่ 1","พนักงาน 2",{"$f":"TODAY()-100","v":"2016-09-12"},{"$f":"TODAY()-40","v":"2016-11-11"},500,{"$f":"IF(COUNTA(ตัวติดตามโครงการ!$E7,ตัวติดตามโครงการ!$F7)<>2,\"\",DAYS360(ตัวติดตามโครงการ!$E7,ตัวติดตามโครงการ!$F7,FALSE))","v":59},{"$f":"TODAY()-100","v":"2016-09-12"},{"$f":"TODAY()-27","v":"2016-11-24"},{"$f":"IFERROR(IF(ตัวติดตามโครงการ[ทำงานจริง (ชั่วโมง)]=0,\"\",IF(ABS((ตัวติดตามโครงการ[[#This Row],[ทำงานจริง (ชั่วโมง)]]-ตัวติดตามโครงการ[[#This Row],[เวลาทำงานที่ประมาณไว้ (ชั่วโมง)]])/ตัวติดตามโครงการ[[#This Row],[เวลาทำงานที่ประมาณไว้ (ชั่วโมง)]])>เปอร์เซ็นต์การตั้งค่าสถานะ,1,0)),\"\")","v":0},500,{"$f":"IFERROR(IF(ตัวติดตามโครงการ[ระยะเวลาจริง (วัน)]=0,\"\",IF(ABS((ตัวติดตามโครงการ[[#This Row],[ระยะเวลาจริง (วัน)]]-ตัวติดตามโครงการ[[#This Row],[ระยะเวลาโดยประมาณ (วัน)]])/ตัวติดตามโครงการ[[#This Row],[ระยะเวลาโดยประมาณ (วัน)]])>เปอร์เซ็นต์การตั้งค่าสถานะ,1,0)),\"\")","v":0},{"$f":"IF(COUNTA(ตัวติดตามโครงการ!$I7,ตัวติดตามโครงการ!$J7)<>2,\"\",DAYS360(ตัวติดตามโครงการ!$I7,ตัวติดตามโครงการ!$J7,FALSE))","v":72}]
[null,"โครงการ 4","ประเภทที่ 2","พนักงาน 3",{"$f":"TODAY()-90","v":"2016-09-22"},{"$f":"TODAY()-80","v":"2016-10-02"},250,{"$f":"IF(COUNTA(ตัวติดตามโครงการ!$E8,ตัวติดตามโครงการ!$F8)<>2,\"\",DAYS360(ตัวติดตามโครงการ!$E8,ตัวติดตามโครงการ!$F8,FALSE))","v":10},{"$f":"TODAY()-90","v":"2016-09-22"},{"$f":"TODAY()-71","v":"2016-10-11"},{"$f":"IFERROR(IF(ตัวติดตามโครงการ[ทำงานจริง (ชั่วโมง)]=0,\"\",IF(ABS((ตัวติดตามโครงการ[[#This Row],[ทำงานจริง (ชั่วโมง)]]-ตัวติดตามโครงการ[[#This Row],[เวลาทำงานที่ประมาณไว้ (ชั่วโมง)]])/ตัวติดตามโครงการ[[#This Row],[เวลาทำงานที่ประมาณไว้ (ชั่วโมง)]])>เปอร์เซ็นต์การตั้งค่าสถานะ,1,0)),\"\")","v":0},276,{"$f":"IFERROR(IF(ตัวติดตามโครงการ[ระยะเวลาจริง (วัน)]=0,\"\",IF(ABS((ตัวติดตามโครงการ[[#This Row],[ระยะเวลาจริง (วัน)]]-ตัวติดตามโครงการ[[#This Row],[ระยะเวลาโดยประมาณ (วัน)]])/ตัวติดตามโครงการ[[#This Row],[ระยะเวลาโดยประมาณ (วัน)]])>เปอร์เซ็นต์การตั้งค่าสถานะ,1,0)),\"\")","v":1},{"$f":"IF(COUNTA(ตัวติดตามโครงการ!$I8,ตัวติดตามโครงการ!$J8)<>2,\"\",DAYS360(ตัวติดตามโครงการ!$I8,ตัวติดตามโครงการ!$J8,FALSE))","v":19}]
[null,"โครงการ 5","ประเภทที่ 3","พนักงาน 2",{"$f":"TODAY()-90","v":"2016-09-22"},{"$f":"TODAY()-50","v":"2016-11-01"},300,{"$f":"IF(COUNTA(ตัวติดตามโครงการ!$E9,ตัวติดตามโครงการ!$F9)<>2,\"\",DAYS360(ตัวติดตามโครงการ!$E9,ตัวติดตามโครงการ!$F9,FALSE))","v":39},{"$f":"TODAY()-90","v":"2016-09-22"},{"$f":"TODAY()-44","v":"2016-11-07"},{"$f":"IFERROR(IF(ตัวติดตามโครงการ[ทำงานจริง (ชั่วโมง)]=0,\"\",IF(ABS((ตัวติดตามโครงการ[[#This Row],[ทำงานจริง (ชั่วโมง)]]-ตัวติดตามโครงการ[[#This Row],[เวลาทำงานที่ประมาณไว้ (ชั่วโมง)]])/ตัวติดตามโครงการ[[#This Row],[เวลาทำงานที่ประมาณไว้ (ชั่วโมง)]])>เปอร์เซ็นต์การตั้งค่าสถานะ,1,0)),\"\")","v":0},310,{"$f":"IFERROR(IF(ตัวติดตามโครงการ[ระยะเวลาจริง (วัน)]=0,\"\",IF(ABS((ตัวติดตามโครงการ[[#This Row],[ระยะเวลาจริง (วัน)]]-ตัวติดตามโครงการ[[#This Row],[ระยะเวลาโดยประมาณ (วัน)]])/ตัวติดตามโครงการ[[#This Row],[ระยะเวลาโดยประมาณ (วัน)]])>เปอร์เซ็นต์การตั้งค่าสถานะ,1,0)),\"\")","v":0},{"$f":"IF(COUNTA(ตัวติดตามโครงการ!$I9,ตัวติดตามโครงการ!$J9)<>2,\"\",DAYS360(ตัวติดตามโครงการ!$I9,ตัวติดตามโครงการ!$J9,FALSE))","v":45}]
[null,"โครงการ 6","ประเภทที่ 4","พนักงาน 4",{"$f":"TODAY()-60","v":"2016-10-22"},{"$f":"TODAY()-50","v":"2016-11-01"},500,{"$f":"IF(COUNTA(ตัวติดตามโครงการ!$E10,ตัวติดตามโครงการ!$F10)<>2,\"\",DAYS360(ตัวติดตามโครงการ!$E10,ตัวติดตามโครงการ!$F10,FALSE))","v":9},{"$f":"TODAY()-60","v":"2016-10-22"},{"$f":"TODAY()-45","v":"2016-11-06"},{"$f":"IFERROR(IF(ตัวติดตามโครงการ[ทำงานจริง (ชั่วโมง)]=0,\"\",IF(ABS((ตัวติดตามโครงการ[[#This Row],[ทำงานจริง (ชั่วโมง)]]-ตัวติดตามโครงการ[[#This Row],[เวลาทำงานที่ประมาณไว้ (ชั่วโมง)]])/ตัวติดตามโครงการ[[#This Row],[เวลาทำงานที่ประมาณไว้ (ชั่วโมง)]])>เปอร์เซ็นต์การตั้งค่าสถานะ,1,0)),\"\")","v":0},510,{"$f":"IFERROR(IF(ตัวติดตามโครงการ[ระยะเวลาจริง (วัน)]=0,\"\",IF(ABS((ตัวติดตามโครงการ[[#This Row],[ระยะเวลาจริง (วัน)]]-ตัวติดตามโครงการ[[#This Row],[ระยะเวลาโดยประมาณ (วัน)]])/ตัวติดตามโครงการ[[#This Row],[ระยะเวลาโดยประมาณ (วัน)]])>เปอร์เซ็นต์การตั้งค่าสถานะ,1,0)),\"\")","v":1},{"$f":"IF(COUNTA(ตัวติดตามโครงการ!$I10,ตัวติดตามโครงการ!$J10)<>2,\"\",DAYS360(ตัวติดตามโครงการ!$I10,ตัวติดตามโครงการ!$J10,FALSE))","v":14}]
[null,"โครงการ 7","ประเภทที่ 5","พนักงาน 1",{"$f":"TODAY()-44","v":"2016-11-07"},{"$f":"TODAY()-20","v":"2016-12-01"},750,{"$f":"IF(COUNTA(ตัวติดตามโครงการ!$E11,ตัวติดตามโครงการ!$F11)<>2,\"\",DAYS360(ตัวติดตามโครงการ!$E11,ตัวติดตามโครงการ!$F11,FALSE))","v":24},{"$f":"TODAY()-44","v":"2016-11-07"},{"$f":"TODAY()-15","v":"2016-12-06"},{"$f":"IFERROR(IF(ตัวติดตามโครงการ[ทำงานจริง (ชั่วโมง)]=0,\"\",IF(ABS((ตัวติดตามโครงการ[[#This Row],[ทำงานจริง (ชั่วโมง)]]-ตัวติดตามโครงการ[[#This Row],[เวลาทำงานที่ประมาณไว้ (ชั่วโมง)]])/ตัวติดตามโครงการ[[#This Row],[เวลาทำงานที่ประมาณไว้ (ชั่วโมง)]])>เปอร์เซ็นต์การตั้งค่าสถานะ,1,0)),\"\")","v":0},790,{"$f":"IFERROR(IF(ตัวติดตามโครงการ[ระยะเวลาจริง (วัน)]=0,\"\",IF(ABS((ตัวติดตามโครงการ[[#This Row],[ระยะเวลาจริง (วัน)]]-ตัวติดตามโครงการ[[#This Row],[ระยะเวลาโดยประมาณ (วัน)]])/ตัวติดตามโครงการ[[#This Row],[ระยะเวลาโดยประมาณ (วัน)]])>เปอร์เซ็นต์การตั้งค่าสถานะ,1,0)),\"\")","v":0},{"$f":"IF(COUNTA(ตัวติดตามโครงการ!$I11,ตัวติดตามโครงการ!$J11)<>2,\"\",DAYS360(ตัวติดตามโครงการ!$I11,ตัวติดตามโครงการ!$J11,FALSE))","v":29}]
[null,"โครงการ 8","ประเภทที่ 2","พนักงาน 1",{"$f":"TODAY()-39","v":"2016-11-12"},{"$f":"TODAY()","v":"2016-12-21"},450,{"$f":"IF(COUNTA(ตัวติดตามโครงการ!$E12,ตัวติดตามโครงการ!$F12)<>2,\"\",DAYS360(ตัวติดตามโครงการ!$E12,ตัวติดตามโครงการ!$F12,FALSE))","v":39},{"$f":"TODAY()-45","v":"2016-11-06"},{"$f":"TODAY()-5","v":"2016-12-16"},{"$f":"IFERROR(IF(ตัวติดตามโครงการ[ทำงานจริง (ชั่วโมง)]=0,\"\",IF(ABS((ตัวติดตามโครงการ[[#This Row],[ทำงานจริง (ชั่วโมง)]]-ตัวติดตามโครงการ[[#This Row],[เวลาทำงานที่ประมาณไว้ (ชั่วโมง)]])/ตัวติดตามโครงการ[[#This Row],[เวลาทำงานที่ประมาณไว้ (ชั่วโมง)]])>เปอร์เซ็นต์การตั้งค่าสถานะ,1,0)),\"\")","v":0},430,{"$f":"IFERROR(IF(ตัวติดตามโครงการ[ระยะเวลาจริง (วัน)]=0,\"\",IF(ABS((ตัวติดตามโครงการ[[#This Row],[ระยะเวลาจริง (วัน)]]-ตัวติดตามโครงการ[[#This Row],[ระยะเวลาโดยประมาณ (วัน)]])/ตัวติดตามโครงการ[[#This Row],[ระยะเวลาโดยประมาณ (วัน)]])>เปอร์เซ็นต์การตั้งค่าสถานะ,1,0)),\"\")","v":0},{"$f":"IF(COUNTA(ตัวติดตามโครงการ!$I12,ตัวติดตามโครงการ!$J12)<>2,\"\",DAYS360(ตัวติดตามโครงการ!$I12,ตัวติดตามโครงการ!$J12,FALSE))","v":40}]
[null,"โครงการ 9","ประเภทที่ 4","พนักงาน 1","2016-02-05","2016-06-09",250,{"$f":"IF(COUNTA(ตัวติดตามโครงการ!$E13,ตัวติดตามโครงการ!$F13)<>2,\"\",DAYS360(ตัวติดตามโครงการ!$E13,ตัวติดตามโครงการ!$F13,FALSE))","v":124},"2016-03-05","2016-05-05",{"$f":"IFERROR(IF(ตัวติดตามโครงการ[ทำงานจริง (ชั่วโมง)]=0,\"\",IF(ABS((ตัวติดตามโครงการ[[#This Row],[ทำงานจริง (ชั่วโมง)]]-ตัวติดตามโครงการ[[#This Row],[เวลาทำงานที่ประมาณไว้ (ชั่วโมง)]])/ตัวติดตามโครงการ[[#This Row],[เวลาทำงานที่ประมาณไว้ (ชั่วโมง)]])>เปอร์เซ็นต์การตั้งค่าสถานะ,1,0)),\"\")","v":0},200,{"$f":"IFERROR(IF(ตัวติดตามโครงการ[ระยะเวลาจริง (วัน)]=0,\"\",IF(ABS((ตัวติดตามโครงการ[[#This Row],[ระยะเวลาจริง (วัน)]]-ตัวติดตามโครงการ[[#This Row],[ระยะเวลาโดยประมาณ (วัน)]])/ตัวติดตามโครงการ[[#This Row],[ระยะเวลาโดยประมาณ (วัน)]])>เปอร์เซ็นต์การตั้งค่าสถานะ,1,0)),\"\")","v":1},{"$f":"IF(COUNTA(ตัวติดตามโครงการ!$I13,ตัวติดตามโครงการ!$J13)<>2,\"\",DAYS360(ตัวติดตามโครงการ!$I13,ตัวติดตามโครงการ!$J13,FALSE))","v":60}]

{"sheet":"การตั้งค่า","index":1,"n_rows":10,"n_cols":3,"rows_kept":10}
[null,"การตั้งค่า"]
[]
[]
[null,"ชื่อประเภท","ชื่อพนักงาน"]
[null,"ประเภทที่ 1","พนักงาน 1"]
[null,"ประเภทที่ 2","พนักงาน 2"]
[null,"ประเภทที่ 3","พนักงาน 3"]
[null,"ประเภทที่ 4","พนักงาน 4"]
[null,"ประเภทที่ 5","พนักงาน 5"]
[null,"ประเภทที่ 6","พนักงาน 6"]